[Event "13 ème Rapide Isle 2019"]
[Site "Isle, France"]
[Date "????.??.??"]
[Round "7.2"]
[White "Budak, Rewi"]
[Black "Saada, Julien"]
[Result "0-1"]
[TimeControl "15'+5''"]
[WhiteElo "2102"]
[BlackElo "2258"]

1. g3 {[%clk 00:12:57]} {[%emt 00:02:12]} d5 {[%clk 00:15:09]} {[%emt
00:00:02]} 2. Bg2 {[%clk 00:13:00]} {[%emt 00:00:02]} e5 {[%clk 00:15:10]}
{[%emt 00:00:03]} 3. b3 {[%clk 00:13:04]} {[%emt 00:00:02]} c6 {[%clk
00:15:04]} {[%emt 00:00:11]} 4. Bb2 {[%clk 00:13:08]} {[%emt 00:00:02]} Bd6
{[%clk 00:15:04]} {[%emt 00:00:04]} 5. f4 {[%clk 00:12:46]} {[%emt 00:00:28]}
Qe7 {[%clk 00:14:53]} {[%emt 00:00:14]} 6. Nf3 {[%clk 00:12:45]} {[%emt
00:00:06]} Nd7 {[%clk 00:14:53]} {[%emt 00:00:05]} 7. O-O {[%clk 00:12:38]}
{[%emt 00:00:12]} Ngf6 {[%clk 00:14:54]} {[%emt 00:00:04]} 8. e3 {[%clk
00:12:18]} {[%emt 00:00:26]} O-O {[%clk 00:14:49]} {[%emt 00:00:09]} 9. Nc3
{[%clk 00:12:21]} {[%emt 00:00:03]} Re8 {[%clk 00:14:28]} {[%emt 00:00:25]} 10.
fxe5 {[%clk 00:12:15]} {[%emt 00:00:12]} Nxe5 {[%clk 00:14:30]} {[%emt
00:00:04]} 11. Nd4 {[%clk 00:12:17]} {[%emt 00:00:03]} Bg4 {[%clk 00:14:02]}
{[%emt 00:00:32]} 12. Qe1 {[%clk 00:12:10]} {[%emt 00:00:13]} Qd7 {[%clk
00:14:00]} {[%emt 00:00:07]} 13. Qf2 {[%clk 00:11:05]} {[%emt 00:01:10]} Bf8
{[%clk 00:12:50]} {[%emt 00:01:14]} 14. Nce2 {[%clk 00:10:37]} {[%emt
00:00:34]} Ne4 {[%clk 00:12:34]} {[%emt 00:00:19]} 15. Qe1 {[%clk 00:09:40]}
{[%emt 00:01:03]} c5 {[%clk 00:12:15]} {[%emt 00:00:24]} 16. Nf3 {[%clk
00:09:43]} {[%emt 00:00:03]} Nxf3+ {[%clk 00:11:14]} {[%emt 00:01:07]} 17. Bxf3
{[%clk 00:09:47]} Bh3 {[%clk 00:10:54]} {[%emt 00:00:24]} 18. Bg2 {[%clk
00:09:50]} {[%emt 00:00:02]} Bxg2 {[%clk 00:10:30]} {[%emt 00:00:30]} 19. Kxg2
{[%clk 00:09:53]} Ng5 {[%clk 00:10:16]} {[%emt 00:00:19]} 20. Qf2 {[%clk
00:07:49]} {[%emt 00:02:10]} d4 {[%clk 00:09:50]} {[%emt 00:00:31]} 21. h4
{[%clk 00:07:52]} {[%emt 00:00:02]} Ne4 {[%clk 00:09:07]} {[%emt 00:00:48]} 22.
Qe1 {[%clk 00:06:50]} {[%emt 00:01:07]} dxe3 {[%clk 00:09:04]} {[%emt
00:00:08]} 23. dxe3 {[%clk 00:06:50]} {[%emt 00:00:05]} Qc6 {[%clk 00:09:00]}
{[%emt 00:00:09]} 24. Kh2 {[%clk 00:06:33]} {[%emt 00:00:23]} Bd6 {[%clk
00:08:40]} {[%emt 00:00:24]} 25. Nf4 {[%clk 00:06:25]} {[%emt 00:00:13]} Be5
{[%clk 00:08:21]} {[%emt 00:00:24]} 26. Bxe5 {[%clk 00:05:40]} {[%emt
00:00:50]} Rxe5 {[%clk 00:08:25]} {[%emt 00:00:01]} 27. Rd1 {[%clk 00:05:14]}
{[%emt 00:00:32]} Nf6 {[%clk 00:08:15]} {[%emt 00:00:15]} 28. Rd3 {[%clk
00:04:51]} {[%emt 00:00:27]} Rae8 {[%clk 00:08:15]} {[%emt 00:00:04]} 29. Qe2
{[%clk 00:04:54]} {[%emt 00:00:04]} h5 {[%clk 00:08:16]} {[%emt 00:00:04]} 30.
Ng2 {[%clk 00:04:43]} {[%emt 00:00:16]} Qe6 {[%clk 00:07:58]} {[%emt 00:00:22]}
31. Re1 {[%clk 00:03:23]} {[%emt 00:01:27]} Ng4+ {[%clk 00:06:34]} {[%emt
00:01:26]} 32. Kg1 {[%clk 00:03:27]} {[%emt 00:00:04]} Qe7 {[%clk 00:06:04]}
{[%emt 00:00:35]} 33. Qd2 {[%clk 00:03:28]} {[%emt 00:00:04]} Nf6 {[%clk
00:06:00]} {[%emt 00:00:08]} 34. Qf2 {[%clk 00:02:58]} {[%emt 00:00:35]} g6
{[%clk 00:05:52]} {[%emt 00:00:13]} 35. Qd2 {[%clk 00:02:25]} {[%emt 00:00:39]}
Ne4 {[%clk 00:05:48]} {[%emt 00:00:09]} 36. Qd1 {[%clk 00:01:59]} {[%emt
00:00:31]} Nxg3 {[%clk 00:05:48]} {[%emt 00:00:06]} 37. Rd7 {[%clk 00:02:03]}
Qe6 {[%clk 00:05:19]} {[%emt 00:00:31]} 38. Rxb7 {[%clk 00:00:38]} {[%emt
00:01:34]} Qh3 {[%clk 00:05:12]} {[%emt 00:00:12]} 39. Qf3 {[%clk 00:00:11]}
{[%emt 00:00:32]} Rf5 {[%clk 00:05:03]} {[%emt 00:00:13]} 40. Nf4 {[%clk
00:00:15]} {[%emt 00:00:01]} Rxf4 {[%clk 00:05:07]} {[%emt 00:00:01]} 41. Qxf4
{[%clk 00:00:11]} {[%emt 00:00:09]} Qh1+ {[%clk 00:05:05]} {[%emt 00:00:06]} 42.
Kf2 {[%clk 00:00:15]} {[%emt 00:00:02]} Ne4+ {[%clk 00:04:42]} {[%emt
00:00:27]} 43. Ke2 {[%clk 00:00:18]} {[%emt 00:00:03]} Qg2+ {[%clk 00:04:20]}
{[%emt 00:06:37]} 44. Kd3 {[%clk 00:00:22]} Qd2+ {[%clk 00:04:06]} 45. Kc4
{[%clk 00:00:26]} Nd6+ {[%clk 00:04:00]} 46. Qxd6 {[%clk 00:00:10]} Qxd6 {[%clk
00:04:02]} 47. Rxa7 {[%clk 00:00:14]} Qd2 {[%clk 00:03:42]} 48. Rh1 {[%clk
00:00:08]} Qxc2+ {[%clk 00:03:25]} 49. Kb5 {[%clk 00:00:07]} Rb8+ {[%clk
00:03:24]} 50. Kc6 {[%clk 00:00:07]} Qe4+ {[%clk 00:03:27]} 51. Kc7 {[%clk
00:00:12]} Rxb3 {[%clk 00:03:01]} 52. Rd1 {[%clk 00:00:09]} Rxe3 {[%clk
00:02:53]} 53. Rd8+ {[%clk 00:00:08]} Kg7 {[%clk 00:02:57]} 54. Rd7 {[%clk
00:00:11]} Rd3 {[%clk 00:02:49]} 55. Kb6 {[%clk 00:00:07]} Qe6+ {[%clk
00:02:46]} 0-1

[Event "13 ème Rapide Isle 2019"]
[Site "Isle, France"]
[Date "????.??.??"]
[Round "7.3"]
[White "Bedouin, Xavier"]
[Black "Neau, Julien"]
[Result "1-0"]
[TimeControl "15'+5''"]
[WhiteElo "2295"]
[BlackElo "1940"]

1. c4 {[%clk 00:14:45]} {[%emt 00:00:24]} Nf6 {[%clk 00:15:07]} {[%emt
00:00:03]} 2. b3 {[%clk 00:14:47]} {[%emt 00:00:03]} g6 {[%clk 00:15:11]}
{[%emt 00:00:02]} 3. Bb2 {[%clk 00:14:50]} {[%emt 00:00:02]} Bg7 {[%clk
00:15:14]} {[%emt 00:00:01]} 4. Nf3 {[%clk 00:14:32]} {[%emt 00:00:23]} O-O
{[%clk 00:15:15]} {[%emt 00:00:04]} 5. e3 {[%clk 00:14:27]} {[%emt 00:00:11]}
d6 {[%clk 00:15:07]} {[%emt 00:00:14]} 6. d4 {[%clk 00:14:19]} {[%emt
00:00:13]} Nbd7 {[%clk 00:15:02]} {[%emt 00:00:10]} 7. Be2 {[%clk 00:12:49]}
{[%emt 00:01:34]} e5 {[%clk 00:13:25]} {[%emt 00:01:43]} 8. O-O {[%clk
00:12:01]} {[%emt 00:00:54]} c6 {[%clk 00:13:02]} {[%emt 00:00:28]} 9. Nc3
{[%clk 00:11:45]} {[%emt 00:00:20]} Re8 {[%clk 00:12:21]} {[%emt 00:00:47]} 10.
Qc2 {[%clk 00:11:28]} {[%emt 00:00:21]} Nb6 {[%clk 00:09:50]} {[%emt 00:02:37]}
11. Rfd1 {[%clk 00:04:23]} {[%emt 00:07:09]} Qe7 {[%clk 00:08:30]} {[%emt
00:01:25]} 12. c5 {[%clk 00:02:36]} {[%emt 00:01:53]} dxc5 {[%clk 00:06:45]}
{[%emt 00:01:50]} 13. dxe5 {[%clk 00:02:24]} {[%emt 00:00:17]} Ng4 {[%clk
00:05:26]} {[%emt 00:01:23]} 14. Ne4 {[%clk 00:02:25]} {[%emt 00:00:04]} Bf5
{[%clk 00:04:12]} {[%emt 00:01:19]} 15. Bd3 {[%clk 00:02:25]} {[%emt 00:00:06]}
Nxe5 {[%clk 00:03:32]} {[%emt 00:00:44]} 16. Nxe5 {[%clk 00:02:23]} {[%emt
00:00:07]} Bxe5 {[%clk 00:03:34]} {[%emt 00:00:03]} 17. Bxe5 {[%clk 00:02:07]}
{[%emt 00:00:21]} Qxe5 {[%clk 00:03:36]} {[%emt 00:00:03]} 18. Nxc5 {[%clk
00:02:03]} {[%emt 00:00:10]} Bxd3 {[%clk 00:03:16]} {[%emt 00:00:25]} 19. Nxd3
{[%clk 00:02:06]} {[%emt 00:00:02]} Qe4 {[%clk 00:02:47]} {[%emt 00:00:32]} 20.
Qc5 {[%clk 00:01:28]} {[%emt 00:00:44]} Nd5 {[%clk 00:02:20]} {[%emt 00:00:32]}
21. Rac1 {[%clk 00:01:14]} {[%emt 00:00:20]} Qe7 {[%clk 00:01:07]} {[%emt
00:01:17]} 22. Qxe7 {[%clk 00:00:51]} {[%emt 00:00:28]} Rxe7 {[%clk 00:01:07]}
{[%emt 00:00:05]} 23. Nc5 {[%clk 00:00:51]} {[%emt 00:00:05]} Rc8 {[%clk
00:00:34]} {[%emt 00:06:48]} 24. Nxb7 {[%clk 00:00:28]} Nb4 {[%clk 00:00:11]}
25. Nd6 {[%clk 00:00:14]} Rd8 {[%clk 00:00:15]} 26. a3 {[%clk 00:00:12]} Red7
{[%clk 00:00:06]} 27. axb4 {[%clk 00:00:14]} Rxd6 {[%clk 00:00:10]} 28. Rxd6
{[%clk 00:00:17]} Rxd6 {[%clk 00:00:14]} 29. g3 {[%clk 00:00:08]} Rd3 {[%clk
00:00:12]} 30. Rxc6 {[%clk 00:00:09]} Rxb3 {[%clk 00:00:15]} 31. Ra6 {[%clk
00:00:06]} Rxb4 {[%clk 00:00:15]} 32. Rxa7 {[%clk 00:00:10]} Rb2 {[%clk
00:00:11]} 33. g4 {[%clk 00:00:13]} Rb4 {[%clk 00:00:09]} 34. h3 {[%clk
00:00:15]} 1-0

[Event "13 ème Rapide Isle 2019"]
[Site "Isle, France"]
[Date "????.??.??"]
[Round "7.4"]
[White "Selebran, Henri"]
[Black "Budak, Rezan"]
[Result "1-0"]
[TimeControl "15'+5''"]
[WhiteElo "2109"]
[BlackElo "1890"]

1. c4 {[%clk 00:15:07]} {[%emt 00:00:02]} Nf6 {[%clk 00:15:08]} {[%emt
00:00:03]} 2. g3 {[%clk 00:15:08]} {[%emt 00:00:04]} e5 {[%clk 00:15:11]}
{[%emt 00:00:02]} 3. Bg2 {[%clk 00:15:10]} {[%emt 00:00:02]} Bc5 {[%clk
00:15:14]} {[%emt 00:00:03]} 4. Nc3 {[%clk 00:15:12]} {[%emt 00:00:03]} O-O
{[%clk 00:15:13]} {[%emt 00:00:05]} 5. e3 {[%clk 00:15:08]} {[%emt 00:00:09]}
Nc6 {[%clk 00:15:03]} {[%emt 00:00:15]} 6. Nge2 {[%clk 00:15:04]} {[%emt
00:00:08]} d6 {[%clk 00:15:00]} {[%emt 00:00:09]} 7. d4 {[%clk 00:14:56]}
{[%emt 00:00:13]} Bb6 {[%clk 00:15:04]} {[%emt 00:00:01]} 8. O-O {[%clk
00:14:52]} {[%emt 00:00:08]} Qe7 {[%clk 00:13:45]} {[%emt 00:01:25]} 9. Na4
{[%clk 00:14:36]} {[%emt 00:00:21]} Bd7 {[%clk 00:12:33]} {[%emt 00:01:17]} 10.
Nxb6 {[%clk 00:14:13]} {[%emt 00:00:27]} axb6 {[%clk 00:12:11]} {[%emt
00:00:27]} 11. b3 {[%clk 00:13:55]} {[%emt 00:00:23]} Rae8 {[%clk 00:11:47]}
{[%emt 00:00:29]} 12. Bb2 {[%clk 00:13:33]} {[%emt 00:00:26]} h6 {[%clk
00:10:26]} {[%emt 00:01:26]} 13. dxe5 {[%clk 00:13:09]} {[%emt 00:00:30]} Nxe5
{[%clk 00:10:17]} {[%emt 00:00:14]} 14. Nc3 {[%clk 00:12:04]} {[%emt 00:01:09]}
Bc6 {[%clk 00:10:10]} {[%emt 00:00:13]} 15. Nd5 {[%clk 00:11:14]} {[%emt
00:00:55]} Qd8 {[%clk 00:10:15]} 16. Nxf6+ {[%clk 00:11:01]} {[%emt 00:00:18]}
gxf6 {[%clk 00:10:10]} {[%emt 00:00:10]} 17. Qh5 {[%clk 00:10:31]} {[%emt
00:00:35]} Kg7 {[%clk 00:09:16]} {[%emt 00:00:58]} 18. Rad1 {[%clk 00:09:56]}
{[%emt 00:00:40]} Bxg2 {[%clk 00:08:41]} {[%emt 00:00:41]} 19. Kxg2 {[%clk
00:09:58]} {[%emt 00:00:03]} Qd7 {[%clk 00:08:45]} {[%emt 00:00:02]} 20. Rd4
{[%clk 00:08:47]} {[%emt 00:01:15]} Qc6+ {[%clk 00:07:10]} {[%emt 00:01:41]} 21.
f3 {[%clk 00:08:31]} {[%emt 00:00:20]} Ng6 {[%clk 00:06:39]} {[%emt 00:00:36]}
22. Rf4 {[%clk 00:06:55]} {[%emt 00:01:42]} Nxf4+ {[%clk 00:06:06]} {[%emt
00:00:39]} 23. gxf4 {[%clk 00:06:55]} {[%emt 00:00:04]} Rxe3 {[%clk 00:05:39]}
{[%emt 00:00:33]} 24. Kf2 {[%clk 00:06:43]} {[%emt 00:00:16]} Rfe8 {[%clk
00:02:04]} {[%emt 00:03:40]} 25. Rg1+ {[%clk 00:05:43]} {[%emt 00:01:04]} Kf8
{[%clk 00:02:02]} {[%emt 00:00:08]} 26. Qxh6+ {[%clk 00:03:24]} {[%emt
00:02:23]} Ke7 {[%clk 00:02:07]} 27. Kxe3 {[%clk 00:03:16]} {[%emt 00:00:14]}
Kd8+ {[%clk 00:02:08]} {[%emt 00:00:04]} 28. Kd2 {[%clk 00:01:53]} {[%emt
00:01:28]} Qxf3 {[%clk 00:02:01]} {[%emt 00:00:12]} 29. Qxf6+ {[%clk 00:01:40]}
{[%emt 00:00:17]} Kc8 {[%clk 00:02:03]} {[%emt 00:00:04]} 30. Qd4 {[%clk
00:00:43]} {[%emt 00:01:02]} Re4 {[%clk 00:00:27]} {[%emt 00:06:32]} 31. Qh8+
{[%clk 00:00:22]} Kd7 {[%clk 00:00:30]} 32. Qg7 {[%clk 00:00:15]} Qxf4+ {[%clk
00:00:14]} 33. Kc2 {[%clk 00:00:15]} Re2+ {[%clk 00:00:18]} 34. Kb1 {[%clk
00:00:17]} Rxh2 {[%clk 00:00:08]} 35. Qg4+ {[%clk 00:00:19]} Qxg4 {[%clk
00:00:11]} 36. Rxg4 {[%clk 00:00:22]} Ke6 {[%clk 00:00:06]} 37. Re4+ {[%clk
00:00:19]} Kd7 {[%clk 00:00:10]} 38. Rf4 {[%clk 00:00:17]} Ke6 {[%clk
00:00:14]} 39. Bd4 {[%clk 00:00:13]} f5 {[%clk 00:00:12]} 40. Rf2 {[%clk
00:00:15]} Rh3 {[%clk 00:00:14]} 41. Kc2 {[%clk 00:00:14]} Rh4 {[%clk
00:00:12]} 42. Kd3 {[%clk 00:00:17]} 1-0